bitfinex/quotes_ETHUSD_20251117
["timestamp","ask_amount","ask_price","bid_price","bid_amount"]
[1763418156924,0.1925,3033.5,3033.1,0.001]
[1763418157224,0.4583,3033.4,3033.1,0.001]
[1763418157438,0.4583,3033.4,3032.8,0.001]
[1763418157439,0.90699264,3033.2,3032.8,0.001]
[1763418157586,0.1925,3032.9,3032.8,0.001]
[1763418157786,0.6508,3032.9,3032.8,0.001]
[1763418159789,1.1206,3032.9,3032.8,0.001]
[1763418164687,0.6623,3032.9,3032.8,0.001]
[1763418165500,0.4583,3033.2,3032.8,0.001]
[1763418166093,0.1925,3033.5,3032.8,0.001]
[1763418166290,1.47674584,3033.4,3032.8,0.001]
[1763418166734,0.4583,3033.3,3032.8,0.001]
[1763418167104,0.6623,3032.9,3032.8,0.001]
[1763418167635,1.1206,3032.9,3032.8,0.001]
[1763418169921,1.1206,3032.9,3032.5,0.001]
[1763418170123,10.75155103,3032.6,3032.5,0.001]
[1763418170433,11.20985103,3032.6,3032.5,0.001]
[1763418171599,0.90699264,3032.6,3032.5,0.001]
[1763418171801,0.9281,3032.6,3032.5,0.001]
[1763418173936,10.46175839,3032.6,3032.5,0.001]
[1763418174234,0.1925,3032.9,3032.5,0.001]
[1763418174423,0.4698,3032.6,3032.5,0.001]
[1763418174838,10.06966331,3032.6,3032.5,0.001]
[1763418175039,11.07662964,3032.6,3032.5,0.001]
[1763418178561,10.61832964,3032.6,3032.5,0.001]
[1763418181256,11.07662964,3032.6,3032.5,0.001]
[1763418181761,10.61832964,3032.6,3032.5,0.001]
[1763418181961,9.14156331,3032.6,3032.5,0.001]
[1763418182127,9.61136331,3032.6,3032.5,0.001]
[1763418182326,10.97665595,3032.6,3032.1,0.001]
[1763418182580,10.97665595,3032.6,3031.7,0.001]
[1763418182581,0.505,3031.9,3031.7,0.001]
[1763418182856,0.90699264,3031.7,3030.6,0.001]
[1763418183061,0.3139,3031.5,3030.6,0.001]
[1763418183562,0.7722,3031.5,3030.6,0.001]
[1763418183736,0.90699264,3031.7,3030.7,0.4573]
[1763418184061,9.59986331,3032.7,3031.6,0.6225]
[1763418184261,9.14156331,3032.3,3031.6,0.1667]
[1763418185854,9.61136331,3032.3,3031.6,0.1667]
[1763418186453,9.61136331,3032.3,3031.7,1.70711906]
[1763418186986,9.61136331,3032.3,3031.6,0.1667]
[1763418186987,9.14156331,3032.3,3031.9,1.70711906]
[1763418187458,9.14156331,3032.7,3032.0,2.16821906]
[1763418187659,9.14156331,3032.7,3032.1,1.70711906]
[1763418187825,0.17289125,3032.2,3032.1,1.70711906]
[1763418188024,9.14156331,3032.7,3032.1,1.70711906]
[1763418188025,9.14156331,3032.7,3032.1,2.65741906]
[1763418188253,9.14156331,3032.7,3032.2,1.70711906]
[1763418188451,9.14156331,3032.7,3032.2,2.16821906]
[1763418188665,0.17288763,3032.6,3032.2,2.16821906]
[1763418188963,0.17288763,3032.6,3032.3,1.70711906]
[1763418189165,0.17288763,3032.6,3032.5,0.4892]
[1763418189367,0.17288763,3032.6,3032.2,1.70711906]
[1763418189535,0.4698,3032.5,3032.2,1.70711906]
[1763418189950,0.4957,3032.3,3032.2,1.70711906]
[1763418190155,9.63726331,3032.3,3032.2,1.70711906]
[1763418190398,0.17288763,3032.6,3032.2,1.70711906]
[1763418190557,0.17288763,3032.6,3032.5,0.4892]
[1763418191582,0.17288763,3032.6,3032.2,1.87783097]
[1763418191775,0.17288763,3032.6,3032.4,1.70711906]
[1763418191947,0.17288763,3032.6,3032.5,0.4892]
[1763418192352,0.17288763,3032.6,3032.5,2.19631906]
[1763418192553,0.17288763,3032.6,3032.5,2.46206097]
[1763418193004,0.4698,3033.7,3032.5,1.21604191]
[1763418193154,0.17283758,3033.3,3033.0,1.75054116]
[1763418193356,9.14156331,3033.1,3032.5,1.75054116]
[1763418193581,9.14156331,3032.7,3032.4,0.99249179]
[1763418193954,9.14156331,3032.7,3032.2,1.75054116]
[1763418194158,0.4698,3032.6,3032.2,1.75054116]
[1763418194975,9.14156331,3032.7,3032.2,1.75054116]
[1763418195380,0.002,3032.9,3032.6,0.4892]
[1763418195672,0.002,3032.9,3032.4,1.75054116]
[1763418195873,0.002,3032.9,3032.4,1.92559528]
[1763418196173,0.002,3032.9,3032.5,1.75054116]
[1763418196483,9.14156331,3032.6,3032.4,1.75054116]
[1763418196792,9.14156331,3032.6,3032.3,1.75054116]
[1763418198064,9.59226331,3032.6,3032.3,1.75054116]
[1763418198471,9.59226331,3032.6,3032.2,1.75054116]
[1763418198686,9.14156331,3032.6,3032.2,1.75054116]
[1763418198889,0.4507,3032.5,3032.2,1.75054116]
[1763418199088,0.4507,3032.8,3032.3,1.75054116]
[1763418199307,0.4507,3032.8,3032.4,1.75054116]
[1763418199456,0.4507,3032.8,3032.6,1.75054116]
[1763418199651,0.002,3032.9,3032.6,1.75054116]
[1763418199652,0.002,3032.9,3032.7,2.23594116]
[1763418199900,0.002,3032.9,3032.5,2.33405488]
[1763418199901,0.468,3032.8,3032.5,2.33405488]
[1763418200198,0.468,3032.8,3032.1,2.91099974]
[1763418200199,9.60956331,3032.6,3032.3,1.74996815]
[1763418200399,0.468,3032.6,3032.3,1.74996815]
[1763418200607,0.468,3032.4,3032.3,1.74996815]
[1763418200757,0.468,3032.4,3032.2,1.74996815]
[1763418200953,0.9187,3032.4,3032.2,1.74996815]
[1763418201193,0.3676,3032.3,3031.8,2.33405488]
[1763418201493,0.3676,3032.3,3032.2,1.75096087]
[1763418201689,0.3676,3032.3,3031.8,2.58413037]
[1763418201899,0.3676,3032.3,3032.2,1.75093006]
[1763418202080,0.3676,3032.3,3032.2,1.75087331]
[1763418202662,0.4507,3032.7,3032.2,1.75087331]
[1763418203466,0.4507,3032.7,3032.3,1.75087331]
[1763418203893,0.4507,3032.7,3031.8,0.25007549]
[1763418203894,0.468,3032.4,3032.2,1.75087331]
[1763418204073,0.468,3032.4,3032.1,1.75087331]
[1763418204277,0.4507,3032.3,3032.1,1.75087331]
[1763418204511,0.3676,3032.2,3032.1,1.75087331]
[1763418204928,0.8183,3032.2,3032.1,1.75087331]
[1763418205104,0.8183,3032.2,3032.0,1.75087331]
[1763418205408,0.8183,3032.2,3032.1,1.75087331]
[1763418205619,0.8183,3032.2,3032.0,1.75087331]
[1763418206820,0.9177,3032.1,3032.0,1.75087331]
[1763418207300,0.467,3032.1,3032.0,1.75087331]
[1763418210255,0.467,3032.1,3031.6,2.33405488]
[1763418210420,0.467,3032.1,3031.6,2.56756037]
[1763418210624,0.4507,3032.4,3031.6,2.56756037]
[1763418210822,0.4507,3032.4,3032.1,1.74889842]
[1763418211260,0.17488255,3032.3,3032.1,1.74889842]
[1763418211556,0.468,3032.2,3032.1,1.74889842]
[1763418211760,0.17488255,3032.3,3032.1,1.74889842]
[1763418213263,0.17488255,3032.3,3032.2,1.74889842]
[1763418213732,0.64288255,3032.3,3032.2,1.74889842]
[1763418214062,1.09358255,3032.3,3032.2,1.74889842]
[1763418214561,0.17488255,3032.3,3032.2,2.23429842]
[1763418214769,0.17488255,3032.3,3032.2,0.72549984]
[1763418214948,0.17488255,3032.3,3032.2,0.4854]
[1763418216066,0.002,3032.3,3032.2,0.941]
[1763418216267,0.002,3032.3,3032.2,1.346504]
[1763418216678,0.00021632,3032.3,3032.2,1.346504]
[1763418217051,0.002,3034.6,3033.1,0.6486]
[1763418217248,0.002,3034.6,3034.3,1.74958792]
[1763418217249,0.4607,3034.4,3034.3,1.74958792]
[1763418217460,1.90900645,3034.4,3034.0,1.74958792]
[1763418217768,0.4704,3034.1,3033.8,1.74958792]
[1763418218131,0.002,3034.5,3034.0,0.4819]
[1763418218334,0.002,3034.5,3034.0,0.70504879]
[1763418218569,0.90899264,3034.5,3034.0,0.4819]
[1763418218972,0.002,3034.5,3034.0,0.4819]
[1763418219171,0.002,3034.5,3034.2,1.74958792]
[1763418219360,0.002,3034.5,3034.3,1.74958792]
[1763418219736,0.002,3034.5,3034.2,1.74958792]
[1763418219737,0.9311,3034.4,3034.2,1.74958792]
[1763418220073,0.9311,3034.4,3034.0,1.74958792]
[1763418220770,0.4607,3034.3,3033.9,1.74958792]
[1763418220972,0.4607,3034.3,3033.8,1.74958792]
[1763418220973,0.3209,3034.1,3033.8,1.74958792]
[1763418221271,0.3209,3034.1,3033.7,1.74958792]
[1763418221770,9.14156331,3034.3,3034.0,0.4819]
[1763418221946,9.14156331,3034.3,3033.7,1.74958792]
[1763418223274,9.14156331,3034.3,3033.6,1.74958792]
[1763418224187,9.14156331,3034.3,3033.5,0.4556]
[1763418224188,9.14156331,3034.3,3033.5,1.74958792]
[1763418224357,0.4607,3034.2,3033.5,1.74958792]
[1763418225371,0.4607,3034.2,3033.5,1.97010671]
[1763418225572,0.002,3034.5,3033.6,0.4556]
[1763418225758,0.4607,3034.4,3033.6,1.74958792]
[1763418226694,0.002,3034.5,3033.7,0.4556]
[1763418226863,0.002,3034.5,3034.4,0.4819]
[1763418227350,0.002,3034.5,3034.4,0.9375]
[1763418227750,0.002,3034.5,3034.4,1.343004]
[1763418228184,0.002,3034.5,3034.4,3.0749818]
[1763418229051,0.002,3034.5,3034.4,1.343004]
[1763418229278,0.002,3034.5,3034.4,1.84558749]
[1763418229588,0.002,3034.6,3034.4,1.84558749]
[1763418229796,5.0,3038.8,3034.4,1.84558749]
[1763418229797,0.002,3036.2,3035.1,0.405504]
[1763418229961,0.002,3036.2,3035.1,1.456504]
[1763418230293,0.002,3036.2,3035.1,2.36349664]
[1763418230593,0.002,3036.2,3035.1,2.77276432]
[1763418232090,0.1807,3035.9,3035.1,1.00466768]
[1763418232337,0.4607,3035.8,3035.1,0.5954]
[1763418234062,0.4724,3035.2,3034.4,1.83222069]
[1763418234346,0.9331,3035.2,3034.3,0.1135]
[1763418234911,0.002,3035.2,3034.4,0.4556]
[1763418235306,0.002,3035.2,3034.5,0.405504]
[1763418235547,0.002,3035.2,3035.1,0.4819]
[1763418237821,0.9331,3035.2,3034.3,0.1135]
[1763418238026,0.002,3035.2,3035.1,0.4819]
[1763418238346,0.002,3035.2,3035.1,0.887404]
[1763418238545,0.002,3035.2,3035.1,0.4819]
[1763418238763,0.002,3035.2,3034.5,0.4556]
[1763418238971,0.002,3035.2,3034.6,0.405504]
[1763418239351,0.002,3035.2,3034.6,0.4556]
[1763418239925,0.002,3035.2,3035.1,0.4819]
[1763418240568,0.002,3035.2,3034.6,0.4556]
[1763418240861,0.002,3035.2,3034.5,0.405504]
[1763418241268,0.002,3035.2,3035.1,0.4819]
[1763418241642,0.002,3035.2,3035.1,1.343004]
[1763418242037,0.002,3035.2,3035.1,1.56800366]
[1763418242235,0.002,3035.2,3035.1,2.50794414]
[1763418242725,0.002,3035.2,3035.1,2.4749963]
[1763418243329,0.002,3035.2,3035.1,4.2041765]
[1763418244258,0.002,3035.2,3035.1,2.4749963]
[1763418244461,0.002,3035.2,3035.1,2.44072139]
[1763418244662,0.002,3035.2,3035.0,1.73382173]
[1763418244822,0.002,3035.2,3034.8,1.73382173]
[1763418245025,0.002,3035.2,3034.6,1.73382173]
[1763418245226,0.002,3035.2,3034.8,1.73382173]
[1763418246483,0.002,3035.2,3034.9,1.73382173]
[1763418246990,0.002,3035.2,3034.9,1.9072039]
[1763418247193,0.002,3035.2,3035.0,1.73382173]
[1763418247359,0.002,3035.2,3034.8,1.73482173]
[1763418247360,0.4553,3035.0,3034.8,1.73482173]
[1763418247680,0.4995,3035.2,3034.8,0.001]
[1763418247681,0.5042,3034.9,3034.8,0.001]
[1763418248084,1.0017,3034.9,3034.8,0.001]
[1763418249190,2.16614484,3034.9,3034.8,0.001]
[1763418249401,10.44964843,3034.5,3034.4,0.001]
[1763418249585,11.37644843,3034.5,3034.4,0.001]
[1763418250417,11.37644843,3034.5,3032.9,1.73382173]
[1763418250418,0.3123,3034.2,3032.9,1.73382173]
[1763418250621,0.4281,3033.4,3033.0,1.73382173]
[1763418250825,0.4281,3033.4,3032.9,1.73382173]
[1763418251323,0.9256,3033.4,3032.9,1.73382173]
[1763418251691,0.1931,3033.5,3032.9,1.73382173]
[1763418252280,0.6906,3033.5,3032.8,1.73382173]
[1763418252489,0.6906,3033.5,3032.8,0.17338217]
[1763418253005,0.1931,3033.7,3032.8,0.63028217]
[1763418253204,0.4975,3034.5,3033.4,0.6621]
[1763418253397,0.4975,3034.5,3033.5,1.73382173]
[1763418253597,0.4975,3034.5,3033.6,0.19005217]
[1763418254131,0.4975,3034.5,3033.6,1.9238739]
[1763418254332,0.4975,3034.5,3033.7,1.73382173]
[1763418255308,0.1931,3034.9,3033.8,2.19072173]
[1763418255706,0.1931,3034.9,3033.9,1.73382173]
[1763418255913,0.1931,3034.9,3033.3,2.30526578]
[1763418255914,0.1827,3033.8,3033.3,2.30526578]
[1763418256234,0.405504,3033.2,3032.1,0.001]
[1763418256437,0.405504,3033.2,3032.1,0.1881]
[1763418256595,0.4975,3033.2,3032.1,0.1881]
[1763418256798,0.4975,3033.6,3032.2,2.64720907]
[1763418256997,0.4975,3033.6,3032.3,0.28353091]
[1763418257218,0.4975,3033.6,3032.1,0.1881]
[1763418257733,0.4975,3033.6,3032.3,0.405504]
[1763418257939,1.08969264,3033.8,3032.3,0.405504]
[1763418258231,1.08969264,3033.8,3032.5,0.405504]
[1763418258396,1.56019264,3033.8,3032.5,0.405504]
[1763418258596,0.4705,3033.7,3032.5,0.872904]
[1763418259298,0.9811022,3033.7,3032.2,0.405504]
[1763418259520,0.9811022,3033.7,3032.2,0.872904]
[1763418259799,1.08969264,3033.8,3032.2,0.872904]
[1763418259800,0.4705,3033.6,3032.2,0.872904]
[1763418260095,0.4705,3033.6,3032.4,0.405504]
[1763418260301,0.4705,3033.6,3032.4,0.872904]
[1763418261723,0.4705,3033.6,3032.4,0.4674]
[1763418262197,0.4705,3033.6,3032.5,0.4674]
[1763418263195,1.07980893,3034.6,3032.6,0.405504]
[1763418263196,0.4705,3034.2,3032.6,0.405504]
[1763418263396,0.4705,3034.2,3032.8,0.405504]
[1763418263706,0.4705,3034.2,3032.9,0.4674]
[1763418264241,0.6636,3035.1,3034.1,0.6813]
[1763418264403,0.6636,3035.1,3034.1,1.1487]
[1763418264600,0.002,3035.2,3034.2,0.872904]
[1763418264972,0.002,3035.2,3034.8,0.4815]
[1763418265314,0.002,3035.2,3034.8,0.9489]
[1763418267563,0.2707,3034.9,3033.8,0.1998]
[1763418267767,0.2707,3034.9,3033.5,0.1998]
[1763418267921,0.4677,3034.8,3033.5,0.71978]
[1763418268117,0.4677,3034.8,3033.5,0.1998]
[1763418269933,0.4677,3034.8,3033.5,0.6672]
[1763418270458,0.4677,3034.8,3033.6,0.4674]
[1763418274724,0.4677,3034.8,3033.7,0.4674]
[1763418274928,0.4677,3034.8,3033.5,0.1998]
[1763418275836,0.4677,3034.8,3033.5,0.6767]
[1763418276040,0.4677,3034.8,3033.1,2.32001535]
[1763418276241,0.90699264,3034.6,3033.0,0.1998]
[1763418276444,1.08551524,3034.5,3033.0,0.1998]
[1763418276735,1.54461524,3034.5,3033.0,0.1998]
[1763418276965,0.4591,3034.4,3033.0,0.1998]
[1763418277762,0.6418,3035.9,3034.3,0.68]
[1763418277947,0.6418,3035.9,3033.6,0.405504]
[1763418277948,0.4591,3035.1,3034.0,0.6579]
[1763418278151,0.4591,3035.1,3034.0,0.181]
[1763418278331,0.4591,3035.1,3034.0,0.6579]
[1763418278830,0.4591,3035.5,3034.1,0.4769]
[1763418279039,0.4611,3035.6,3034.2,0.03295761]
[1763418279252,0.002,3035.6,3034.1,0.4769]
[1763418279562,0.4591,3035.1,3034.1,0.4769]
[1763418279765,0.002,3035.6,3034.1,0.4769]
[1763418279973,0.4611,3035.6,3034.1,0.4769]
[1763418280179,0.4611,3035.3,3034.1,0.4769]
[1763418280478,0.002,3035.3,3034.1,0.4769]
[1763418281175,0.002,3035.3,3034.2,0.405504]
[1763418281344,0.002,3035.3,3034.3,0.4769]
[1763418281946,0.002,3035.3,3035.1,0.68]
[1763418282286,0.002,3035.3,3034.3,0.4769]
[1763418282287,0.002,3035.3,3034.4,0.405504]
[1763418282648,9.73575579,3034.5,3033.4,5.0]
[1763418282863,9.73575579,3034.5,3032.9,0.181]
[1763418282864,0.2709,3033.5,3032.7,4.24957084]
[1763418283061,0.405504,3034.2,3032.7,0.181]
[1763418283284,0.4591,3034.3,3032.8,0.4769]
[1763418283481,0.405504,3034.3,3032.8,0.4769]
[1763418283791,0.405504,3034.1,3032.5,0.001]
[1763418283951,0.4591,3034.0,3032.5,0.001]
[1763418284354,0.6522,3034.5,3032.6,0.4769]
[1763418284548,0.4591,3034.4,3032.6,0.4769]
[1763418284763,0.4591,3034.4,3032.7,0.405504]
[1763418285147,0.4591,3034.4,3032.5,0.001]
[1763418285148,0.4591,3034.4,3032.8,0.4769]
[1763418286381,0.405504,3034.3,3032.8,0.4769]
[1763418286785,0.4591,3034.2,3032.8,0.4769]
[1763418297452,1.31249664,3033.9,3032.5,0.001]
[1763418297600,0.90699264,3033.4,3032.5,0.001]
[1763418298109,1.04450252,3033.8,3032.5,0.001]
[1763418298313,0.4591,3034.1,3033.3,0.68]
[1763418298511,0.4591,3034.1,3033.1,0.181]
[1763418300443,1.36609264,3034.1,3032.8,0.001]
[1763418300601,0.09,3033.2,3032.8,0.001]
[1763418300937,0.686704,3032.9,3032.8,0.001]
[1763418301140,0.4743,3032.9,3032.8,0.001]
[1763418301339,1.145904,3032.9,3032.8,0.001]
[1763418303154,0.7404,3032.9,3032.8,0.001]
[1763418304858,1.145904,3032.9,3032.8,0.001]
[1763418305079,1.145904,3032.9,3032.4,0.001]
[1763418305080,1.35119366,3032.9,3032.4,0.001]
[1763418305366,1.35119366,3032.9,3031.4,0.001]
[1763418305367,1.41704543,3032.8,3031.4,0.001]
[1763418305563,0.4515,3032.0,3031.4,0.001]
[1763418306074,0.4817,3031.5,3030.8,1.16774771]
[1763418306363,0.4817,3031.5,3030.6,1.75262157]
[1763418306364,0.4817,3031.5,3030.6,0.001]
[1763418306678,0.1821,3032.1,3031.0,1.16874771]
[1763418306823,0.1821,3032.3,3031.3,1.16774771]
[1763418307168,0.1821,3032.3,3031.4,1.16774771]
[1763418307326,9.3265286,3034.1,3031.2,1.16774771]
[1763418307528,0.1821,3033.2,3032.0,1.16774771]
[1763418307726,0.1821,3033.2,3031.5,1.31249664]
[1763418307727,0.468,3034.4,3033.1,1.16774771]
[1763418307927,0.002,3034.4,3033.5,1.16774771]
[1763418308360,0.002,3034.4,3033.6,1.16774771]
[1763418308792,0.002,3034.4,3033.7,1.16774771]
[1763418308969,0.468,3034.4,3033.7,0.29193693]
[1763418309174,0.002,3034.4,3033.5,1.16774771]
[1763418309324,0.002,3034.4,3033.7,1.16774771]
[1763418309530,0.002,3034.4,3034.1,1.16774771]
[1763418309731,0.002,3034.4,3034.2,1.20070532]
[1763418310068,0.002,3034.4,3034.3,1.16207691]
[1763418310240,0.002,3034.4,3034.3,1.7845781]
[1763418310439,0.002,3034.4,3034.3,1.09171067]
[1763418310657,0.002,3035.3,3034.4,0.405504]
[1763418310976,0.002,3035.3,3034.7,1.74155154]
[1763418311183,0.002,3035.3,3034.4,2.74099943]
[1763418311651,0.002,3035.3,3034.6,9.5380326]
[1763418311968,0.002,3035.3,3035.1,1.16048997]
[1763418312177,0.002,3035.3,3034.5,0.87056151]
[1763418312178,0.468,3035.2,3034.5,0.87056151]
[1763418312343,0.002,3035.2,3034.7,0.87056151]
[1763418312680,0.466,3035.1,3034.7,0.87056151]
[1763418312828,0.1821,3034.8,3034.0,0.87056151]
[1763418313027,0.1821,3035.0,3034.0,1.07366666]
[1763418313267,0.1821,3035.0,3034.3,0.87056151]
[1763418313471,0.002,3035.2,3034.6,0.87056151]
[1763418313762,0.1821,3034.9,3034.7,0.87056151]
[1763418313965,0.1821,3034.9,3034.6,0.87056151]
[1763418314168,0.1821,3034.9,3034.3,0.87056151]
[1763418314169,0.466,3034.8,3034.3,0.87056151]
[1763418314346,0.405504,3034.7,3034.2,0.87056151]
[1763418314539,1.31249664,3034.5,3033.5,0.87056151]
[1763418314740,1.31249664,3034.5,3033.1,1.74051565]
[1763418314741,0.1821,3033.9,3033.4,0.87056151]
[1763418314939,0.1821,3033.9,3033.3,0.87056151]
[1763418314940,0.405504,3033.7,3033.3,0.87056151]
[1763418315141,0.1821,3033.9,3032.9,0.87056151]
[1763418315327,0.1821,3033.9,3033.1,0.87056151]
[1763418315529,0.1821,3033.9,3033.4,0.87056151]
[1763418315832,0.1821,3033.9,3033.5,0.87056151]
[1763418316179,0.1821,3033.9,3033.4,0.87056151]
[1763418316879,0.1821,3033.9,3033.2,0.87056151]
[1763418316880,0.405504,3033.7,3033.2,0.87056151]
[1763418317030,0.405504,3033.7,3032.2,2.90181178]
[1763418317031,1.31249664,3033.5,3032.2,0.87056151]
[1763418317232,1.31249664,3033.0,3031.8,0.87056151]
[1763418317447,1.31249664,3033.2,3031.7,0.87056151]
[1763418317872,0.405504,3033.0,3031.7,0.87056151]
[1763418318234,0.405504,3032.8,3031.7,0.87056151]
[1763418318737,0.4811,3032.7,3031.7,0.87056151]
[1763418319041,0.4811,3032.7,3031.8,0.87056151]
[1763418320279,0.4811,3032.7,3031.7,0.87056151]
[1763418321248,0.405504,3032.6,3031.6,0.87056151]
[1763418321485,0.405504,3032.6,3031.3,0.90699264]
[1763418321486,0.405504,3032.6,3031.5,0.87056151]
[1763418321720,0.4811,3032.5,3031.5,0.87056151]
[1763418321886,0.4811,3032.9,3031.6,0.87056151]
[1763418323732,0.4831,3033.2,3031.9,0.87056151]
[1763418324525,0.4831,3033.2,3032.1,0.87056151]
[1763418325024,0.4831,3033.2,3032.2,0.87056151]
[1763418325244,0.4831,3033.2,3032.2,1.07366666]
[1763418325411,0.4831,3033.2,3032.3,0.87056151]
[1763418326151,0.4831,3033.2,3032.2,0.20310515]
[1763418326152,0.405504,3033.1,3032.2,0.87056151]
[1763418326360,0.4715,3032.3,3031.8,0.87056151]
[1763418326644,0.4715,3032.3,3031.6,0.87056151]
[1763418326645,0.1824,3031.9,3031.6,0.87056151]
[1763418326848,0.1824,3031.9,3031.4,0.87056151]
[1763418327317,0.1824,3032.3,3031.5,0.87056151]
[1763418329868,0.4811,3032.2,3031.4,0.87056151]
[1763418330050,0.4811,3032.2,3031.0,1.74151565]
[1763418330051,0.4715,3031.5,3031.1,0.87056151]
[1763418330269,0.405504,3032.1,3031.0,0.001]
[1763418330270,0.4715,3031.1,3031.0,0.001]
[1763418330462,0.4715,3031.1,3030.7,1.16148997]
[1763418330463,0.4715,3031.1,3030.7,0.001]
[1763418330787,0.1824,3031.1,3030.7,0.001]
[1763418330944,0.4811,3031.0,3030.7,0.001]
[1763418331149,0.405504,3030.9,3030.6,0.001]
[1763418331548,0.405504,3030.7,3030.6,0.001]
[1763418331965,0.405504,3030.7,3030.3,0.001]
[1763418331966,0.405504,3030.6,3029.0,0.87056151]
[1763418332173,0.405504,3029.5,3028.2,1.29304862]
[1763418332378,0.17,3029.5,3028.3,0.03302182]
[1763418332576,0.4811,3029.4,3028.3,0.87056151]
[1763418332778,0.4811,3029.4,3028.2,0.87056151]
[1763418333387,0.17,3029.5,3028.1,0.87056151]
[1763418333566,0.17,3029.5,3028.2,0.87056151]
[1763418333772,0.17,3029.5,3027.9,0.90699264]
[1763418333773,0.17,3029.5,3028.3,0.87056151]
[1763418334071,0.17,3029.5,3028.4,0.87056151]
[1763418334381,0.17,3029.5,3028.2,0.87056151]
[1763418334975,0.6511,3029.5,3028.2,0.87056151]
[1763418335285,0.17,3029.5,3028.2,0.87056151]
[1763418335437,0.17,3029.5,3028.7,0.405504]
[1763418335637,0.17,3029.5,3029.0,0.405504]
[1763418335856,0.17,3029.5,3029.2,1.27606551]
[1763418336060,0.17,3029.5,3029.3,0.87056151]
[1763418336374,0.4728,3031.6,3029.4,1.56599397]
[1763418336580,0.4728,3031.6,3029.7,0.86956709]
[1763418336783,0.4728,3031.6,3029.9,0.405504]
[1763418336958,0.4728,3031.9,3029.9,1.27507109]
[1763418337163,0.4728,3031.9,3029.9,0.86956709]
[1763418337364,0.4728,3031.9,3030.1,0.86956709]
[1763418337694,0.4728,3031.9,3030.2,0.405504]
[1763418337987,0.4728,3031.9,3030.0,0.86956709]
[1763418338187,0.4728,3031.9,3029.6,0.86956709]
[1763418338370,0.405504,3031.8,3029.6,0.86956709]
[1763418338769,0.405504,3031.6,3029.6,0.86956709]
[1763418339151,0.405504,3031.4,3029.5,1.11686575]
[1763418339353,0.405504,3031.2,3029.6,0.86956709]
[1763418339687,0.405504,3031.2,3029.5,1.11686575]
[1763418339863,0.405504,3031.0,3029.5,1.11686575]
[1763418340058,0.405504,3031.0,3029.3,0.86956709]
[1763418340310,0.405504,3030.8,3028.8,0.86956709]
[1763418340490,0.405504,3030.8,3028.9,0.86956709]
[1763418340807,0.4728,3030.7,3028.8,0.86956709]
[1763418340962,0.405504,3030.6,3028.8,0.86956709]
[1763418341164,0.4728,3030.5,3028.9,0.86956709]
[1763418341407,0.405504,3030.4,3028.9,0.86956709]
[1763418341770,0.4728,3030.3,3028.9,0.86956709]
[1763418342077,0.4728,3030.3,3028.7,0.86956709]
[1763418342284,0.4728,3030.3,3028.9,0.86956709]
[1763418343003,0.6683,3030.9,3029.6,0.86956709]
[1763418343368,0.6683,3030.9,3029.7,0.86956709]
[1763418344202,0.4728,3031.4,3029.8,0.86956709]
[1763418344402,0.4728,3031.4,3030.2,0.86956709]
[1763418345573,0.4728,3031.4,3030.3,0.86956709]
[1763418346008,0.4728,3031.4,3030.3,0.20300571]
[1763418346209,0.587904,3032.0,3030.7,0.86956709]
[1763418346210,0.4728,3031.8,3030.7,0.86956709]
[1763418346419,0.1824,3032.0,3031.0,0.86956709]
[1763418347299,0.1824,3032.0,3031.1,0.86956709]
[1763418347904,0.6552,3032.0,3031.1,0.86956709]
[1763418350025,0.6552,3032.0,3031.2,0.86956709]
[1763418350026,0.4728,3031.9,3031.2,0.86956709]
[1763418350587,0.405504,3031.8,3031.1,0.86956709]
[1763418350886,0.405504,3031.8,3030.7,0.86956709]
[1763418351085,0.4728,3031.7,3030.7,0.86956709]
[1763418351289,0.405504,3031.6,3030.8,0.86956709]
[1763418351478,0.1955,3030.9,3030.5,0.86956709]
[1763418352415,0.4728,3031.5,3030.5,0.86956709]
[1763418352600,0.1824,3032.0,3030.6,0.86956709]
[1763418352911,0.4728,3031.9,3030.8,0.86956709]
[1763418353434,0.1824,3032.0,3030.9,0.86956709]
[1763418353613,0.6552,3032.3,3031.3,0.86956709]
[1763418354304,0.6552,3032.3,3031.4,0.86956709]
[1763418354816,0.6552,3032.3,3031.5,0.86956709]
[1763418355017,0.6552,3032.3,3031.4,0.86956709]
[1763418355387,0.6552,3032.3,3031.5,0.86956709]
[1763418355591,0.6552,3032.3,3031.6,0.86956709]
[1763418356085,0.1824,3032.3,3031.6,0.86956709]
[1763418356283,0.4728,3032.2,3031.6,0.86956709]
[1763418356922,0.4728,3032.2,3031.7,0.86956709]
[1763418357984,0.17292493,3032.1,3031.7,0.86956709]
[1763418358732,0.17292493,3032.1,3031.8,0.86956709]
[1763418361225,0.1955,3033.0,3032.0,1.16048997]
[1763418361430,0.1955,3033.0,3032.2,0.87600201]
[1763418361431,0.17289581,3032.7,3032.2,0.87600201]
[1763418361592,0.17289581,3032.7,3032.4,0.87600201]
[1763418362434,0.17289581,3032.7,3032.4,1.08040248]
[1763418362604,0.17289581,3032.7,3032.5,0.87600201]
[1763418363000,0.17289581,3032.7,3032.4,0.20440047]
[1763418363200,0.17289581,3032.7,3032.5,0.87555535]
[1763418363431,0.17289581,3032.7,3032.6,0.87555535]
[1763418363918,1.13199581,3032.7,3032.5,0.87555535]
[1763418364089,0.17289581,3032.7,3032.2,0.87555535]
[1763418364429,0.17289581,3032.7,3032.5,0.87555535]
[1763418365750,0.4863,3032.6,3031.9,0.87685498]
[1763418365896,0.64569581,3032.7,3031.9,0.87685498]
[1763418365897,0.349,3032.4,3031.9,0.87685498]
[1763418366246,0.4506,3032.0,3031.6,1.16800269]
[1763418366626,0.4959,3032.6,3031.6,1.16800269]
[1763418367002,0.4959,3032.6,3031.7,1.16800269]
[1763418367641,0.4959,3032.6,3031.6,1.16800269]